[Event "*** SCC Grand Prix: Titled Tuesday Blitz"]
[Site "Chess.com"]
[Date "2020.06.23"]
[Round "4"]
[White "Kavyev_Ruslan"]
[Black "Bulldog167"]
[Result "0-1"]
[WhiteElo "2550"]
[BlackElo "2779"]
[TimeControl "180+1"]
[EndTime "10:40:03 PDT"]
[Termination "Bulldog167 won by resignation"]

1. d4 {[%clk 0:03:00.9]} 1... Nf6 {[%clk 0:03:00.2]} 2. c4 {[%clk 0:03:00.9]}
2... g6 {[%clk 0:03:00.6]} 3. Nc3 {[%clk 0:03:00.7]} 3... Bg7 {[%clk 0:03:01.2]}
4. e4 {[%clk 0:03:00.7]} 4... d6 {[%clk 0:03:01.8]} 5. Be2 {[%clk 0:03:01.3]}
5... O-O {[%clk 0:03:02]} 6. Be3 {[%clk 0:03:01.5]} 6... e5 {[%clk 0:03:02.5]}
7. d5 {[%clk 0:03:01.7]} 7... Na6 {[%clk 0:03:02.4]} 8. g4 {[%clk 0:03:01.1]}
8... Nc5 {[%clk 0:03:02.9]} 9. f3 {[%clk 0:03:01.8]} 9... a5 {[%clk 0:02:59.8]}
10. h4 {[%clk 0:03:01.7]} 10... h5 {[%clk 0:03:00.4]} 11. g5 {[%clk 0:03:02]}
11... Nfd7 {[%clk 0:03:00.6]} 12. Qd2 {[%clk 0:03:00.6]} 12... Nb6 {[%clk
0:03:00.4]} 13. Nh3 {[%clk 0:03:00.1]} 13... Bd7 {[%clk 0:02:58.3]} 14. O-O-O
{[%clk 0:02:56.2]} 14... Qe7 {[%clk 0:02:57.9]} 15. Nb5 {[%clk 0:02:51.2]} 15...
Bxb5 {[%clk 0:02:41.8]} 16. cxb5 {[%clk 0:02:52.1]} 16... a4 {[%clk 0:02:42.5]}
17. Kb1 {[%clk 0:02:40.8]} 17... Kh8 {[%clk 0:02:41.2]} 18. Rc1 {[%clk
0:02:34.8]} 18... Nbd7 {[%clk 0:02:40.1]} 19. Nf2 {[%clk 0:02:30.5]} 19... f6
{[%clk 0:02:35.9]} 20. gxf6 {[%clk 0:02:10.6]} 20... Bxf6 {[%clk 0:02:33.6]} 21.
Rcg1 {[%clk 0:02:08.8]} 21... Rg8 {[%clk 0:02:32.3]} 22. Nh3 {[%clk 0:02:05]}
22... Raf8 {[%clk 0:02:26.3]} 23. Ng5 {[%clk 0:02:03.5]} 23... Bxg5 {[%clk
0:02:26.6]} 24. Bxg5 {[%clk 0:02:00.7]} 24... Qg7 {[%clk 0:02:24.1]} 25. Rg2
{[%clk 0:01:52]} 25... Kh7 {[%clk 0:02:19.9]} 26. Rhg1 {[%clk 0:01:51.7]} 26...
Rf7 {[%clk 0:02:16.2]} 27. Rg3 {[%clk 0:01:47.9]} 27... Rgf8 {[%clk 0:02:14.9]}
28. Be3 {[%clk 0:01:36.3]} 28... Rf6 {[%clk 0:02:13.7]} 29. Bg5 {[%clk 0:01:36]}
29... R6f7 {[%clk 0:02:13.4]} 30. Be3 {[%clk 0:01:36.2]} 30... Rf6 {[%clk
0:02:13.5]} 31. R1g2 {[%clk 0:01:17.4]} 31... Rg8 {[%clk 0:02:08.7]} 32. Bd1
{[%clk 0:01:12.9]} 32... Qf8 {[%clk 0:02:00.8]} 33. Rg1 {[%clk 0:01:06.6]} 33...
Rf4 {[%clk 0:01:53.9]} 34. Bxf4 {[%clk 0:01:02.3]} 34... exf4 {[%clk 0:01:54.8]}
35. Rg5 {[%clk 0:01:01.8]} 35... Ne5 {[%clk 0:01:52]} 36. Be2 {[%clk 0:00:59.7]}
36... Qf6 {[%clk 0:01:49.4]} 37. Qc3 {[%clk 0:00:59.2]} 37... b6 {[%clk
0:01:45.7]} 38. Qd2 {[%clk 0:00:53.9]} 38... Nf7 {[%clk 0:01:34.1]} 39. Bd1
{[%clk 0:00:33.7]} 39... Nxg5 {[%clk 0:01:33.1]} 40. Rxg5 {[%clk 0:00:33.8]}
40... Re8 {[%clk 0:01:30.1]} 41. a3 {[%clk 0:00:32.7]} 41... Re5 {[%clk
0:01:30]} 42. Qg2 {[%clk 0:00:28.3]} 42... Rxg5 {[%clk 0:01:29.9]} 43. hxg5
{[%clk 0:00:28.7]} 43... Qd4 {[%clk 0:01:28.9]} 44. Bc2 {[%clk 0:00:28.8]} 44...
Nb3 {[%clk 0:01:21]} 45. Qh2 {[%clk 0:00:22.1]} 45... Nd2+ {[%clk 0:01:16.5]}
46. Ka1 {[%clk 0:00:19.4]} 46... Nc4 {[%clk 0:01:03.6]} 47. Bxa4 {[%clk
0:00:19.6]} 47... Ne5 {[%clk 0:00:57.5]} 48. Bb3 {[%clk 0:00:17.5]} 48... Qe3
{[%clk 0:00:55.1]} 49. Ka2 {[%clk 0:00:16.9]} 49... Qxf3 {[%clk 0:00:54.2]} 50.
Qc2 {[%clk 0:00:16.7]} 50... Qg4 {[%clk 0:00:33.9]} 51. Qxc7+ {[%clk 0:00:16.8]}
51... Qd7 {[%clk 0:00:34.5]} 52. Qxb6 {[%clk 0:00:16.4]} 52... f3 {[%clk
0:00:35]} 53. a4 {[%clk 0:00:16.3]} 53... h4 {[%clk 0:00:33.2]} 54. a5 {[%clk
0:00:16]} 54... h3 {[%clk 0:00:33.6]} 55. a6 {[%clk 0:00:11.6]} 55... h2 {[%clk
0:00:33.6]} 56. Qb7 {[%clk 0:00:12.1]} 56... Qxb7 {[%clk 0:00:33]} 57. axb7
{[%clk 0:00:13]} 57... Nd7 {[%clk 0:00:33.2]} 58. b8=Q {[%clk 0:00:13.9]} 58...
Nxb8 {[%clk 0:00:33.4]} 0-1

[Event "*** SCC Grand Prix: Titled Tuesday Blitz"]
[Site "Chess.com"]
[Date "2020.06.23"]
[Round "4"]
[White "GuerrieroFromLevant"]
[Black "NTBT_DHS"]
[Result "0-1"]
[WhiteElo "2426"]
[BlackElo "2635"]
[TimeControl "180+1"]
[EndTime "10:40:03 PDT"]
[Termination "NTBT_DHS won by resignation"]

1. e4 {[%clk 0:03:00.9]} 1... c5 {[%clk 0:02:59.9]} 2. Nf3 {[%clk 0:03:00.3]}
2... Nc6 {[%clk 0:03:00.3]} 3. Bb5 {[%clk 0:02:59.9]} 3... Nf6 {[%clk
0:02:59.9]} 4. e5 {[%clk 0:02:56.7]} 4... Nd5 {[%clk 0:02:59.6]} 5. Nc3 {[%clk
0:02:56.1]} 5... Nc7 {[%clk 0:02:58.2]} 6. Bxc6 {[%clk 0:02:55.6]} 6... dxc6
{[%clk 0:02:59.1]} 7. O-O {[%clk 0:02:56.1]} 7... g6 {[%clk 0:02:59.4]} 8. Ne4
{[%clk 0:02:55.8]} 8... Ne6 {[%clk 0:02:57.8]} 9. b3 {[%clk 0:02:52.2]} 9... Bg7
{[%clk 0:02:58]} 10. Bb2 {[%clk 0:02:51.1]} 10... O-O {[%clk 0:02:58.6]} 11. Qe2
{[%clk 0:02:49]} 11... b6 {[%clk 0:02:56.5]} 12. Rad1 {[%clk 0:02:40.7]} 12...
a5 {[%clk 0:02:56.6]} 13. d4 {[%clk 0:02:40.3]} 13... Ba6 {[%clk 0:02:56.5]} 14.
c4 {[%clk 0:02:39.9]} 14... cxd4 {[%clk 0:02:55.2]} 15. Nxd4 {[%clk 0:02:39.7]}
15... Nxd4 {[%clk 0:02:52.3]} 16. Bxd4 {[%clk 0:02:40.6]} 16... Qc7 {[%clk
0:02:52.3]} 17. f4 {[%clk 0:02:36.7]} 17... c5 {[%clk 0:02:50]} 18. Bb2 {[%clk
0:02:34.2]} 18... Rad8 {[%clk 0:02:46.9]} 19. Nc3 {[%clk 0:02:33]} 19... e6
{[%clk 0:02:45.1]} 20. Rxd8 {[%clk 0:02:29.5]} 20... Rxd8 {[%clk 0:02:44.7]} 21.
Rd1 {[%clk 0:02:29.9]} 21... Bh6 {[%clk 0:02:41.3]} 22. g3 {[%clk 0:02:28.4]}
22... Bb7 {[%clk 0:02:38.8]} 23. Rxd8+ {[%clk 0:02:20.7]} 23... Qxd8 {[%clk
0:02:38.5]} 24. Nb5 {[%clk 0:02:20.2]} 24... Bf8 {[%clk 0:02:29]} 25. Nd6 {[%clk
0:01:40.8]} 25... Ba8 {[%clk 0:02:20.2]} 26. Ne4 {[%clk 0:01:32.1]} 26... Be7
{[%clk 0:02:17.7]} 27. Kf2 {[%clk 0:01:27.5]} 27... Qd7 {[%clk 0:02:12.7]} 28.
Qf3 {[%clk 0:01:17.5]} 28... Kg7 {[%clk 0:01:55.9]} 29. Nf6 {[%clk 0:01:06.1]}
29... Qc8 {[%clk 0:01:45.7]} 30. Qd3 {[%clk 0:00:44.9]} 30... Qc6 {[%clk
0:01:45.2]} 31. Ke3 {[%clk 0:00:43.8]} 31... Qf3+ {[%clk 0:01:35.3]} 32. Kd2
{[%clk 0:00:43.7]} 32... Qh1 {[%clk 0:01:29.2]} 33. Qe2 {[%clk 0:00:37.5]} 33...
Bf3 {[%clk 0:01:28.6]} 34. Qf2 {[%clk 0:00:32.2]} 34... Qd1+ {[%clk 0:01:26.1]}
35. Ke3 {[%clk 0:00:30.7]} 35... Bc6 {[%clk 0:01:20.1]} 36. Qd2 {[%clk
0:00:20.6]} 36... Qf1 {[%clk 0:01:18.3]} 37. Qf2 {[%clk 0:00:20.3]} 37... Qb1
{[%clk 0:01:18.5]} 38. Qd2 {[%clk 0:00:19.1]} 38... Qxa2 {[%clk 0:01:17.4]} 39.
g4 {[%clk 0:00:17.9]} 39... Qxb3+ {[%clk 0:01:17.2]} 40. Qc3 {[%clk 0:00:16.3]}
40... Qd1 {[%clk 0:01:17]} 41. f5 {[%clk 0:00:15.4]} 41... exf5 {[%clk
0:00:57.7]} 42. gxf5 {[%clk 0:00:15.1]} 42... Qf3+ {[%clk 0:00:57.6]} 43. Kd2
{[%clk 0:00:15.5]} 43... Qf4+ {[%clk 0:00:56.2]} 44. Kd1 {[%clk 0:00:13.7]}
44... Bf3+ {[%clk 0:00:53.1]} 45. Kc2 {[%clk 0:00:13.4]} 45... Qxf5+ {[%clk
0:00:53.2]} 46. Kb3 {[%clk 0:00:14]} 46... Bd1+ {[%clk 0:00:52.8]} 47. Ka3
{[%clk 0:00:13.9]} 47... b5 {[%clk 0:00:49.7]} 48. cxb5 {[%clk 0:00:12.4]} 48...
c4+ {[%clk 0:00:49.8]} 49. Ka2 {[%clk 0:00:12.9]} 49... Bb3+ {[%clk 0:00:49.6]}
50. Ka1 {[%clk 0:00:13.1]} 50... Qf1+ {[%clk 0:00:38.9]} 51. Qc1 {[%clk
0:00:13.1]} 51... Qe2 {[%clk 0:00:31.9]} 52. e6 {[%clk 0:00:11.5]} 52... Bxf6
{[%clk 0:00:30.6]} 53. Bxf6+ {[%clk 0:00:11.5]} 53... Kxf6 {[%clk 0:00:31]} 54.
Qb2+ {[%clk 0:00:11.3]} 54... Qxb2+ {[%clk 0:00:30.6]} 55. Kxb2 {[%clk
0:00:12.2]} 55... Kxe6 {[%clk 0:00:30.7]} 56. b6 {[%clk 0:00:12.6]} 56... Kd6
{[%clk 0:00:31.2]} 0-1

[Event "*** SCC Grand Prix: Titled Tuesday Blitz"]
[Site "Chess.com"]
[Date "2020.06.23"]
[Round "4"]
[White "stolencandy13"]
[Black "csati17"]
[Result "1-0"]
[WhiteElo "2430"]
[BlackElo "2607"]
[TimeControl "180+1"]
[EndTime "10:40:05 PDT"]
[Termination "stolencandy13 won by resignation"]

1. e4 {[%clk 0:03:00.9]} 1... e6 {[%clk 0:03:00.2]} 2. d4 {[%clk 0:03:00.1]}
2... d5 {[%clk 0:03:00.3]} 3. Nd2 {[%clk 0:03:01]} 3... Nf6 {[%clk 0:02:59.8]}
4. e5 {[%clk 0:03:00.8]} 4... Nfd7 {[%clk 0:03:00.2]} 5. Bd3 {[%clk 0:03:01.7]}
5... c5 {[%clk 0:03:00.9]} 6. c3 {[%clk 0:03:02]} 6... Nc6 {[%clk 0:03:01.6]} 7.
Ne2 {[%clk 0:03:02.4]} 7... cxd4 {[%clk 0:03:02.1]} 8. cxd4 {[%clk 0:03:03.3]}
8... f6 {[%clk 0:03:02.9]} 9. exf6 {[%clk 0:03:03]} 9... Nxf6 {[%clk 0:03:03.8]}
10. O-O {[%clk 0:03:02.5]} 10... Bd6 {[%clk 0:03:04.7]} 11. Nf3 {[%clk
0:03:00.9]} 11... O-O {[%clk 0:03:05.6]} 12. Bf4 {[%clk 0:02:39.8]} 12... Bxf4
{[%clk 0:03:04.8]} 13. Nxf4 {[%clk 0:02:40.1]} 13... Ng4 {[%clk 0:03:05.7]} 14.
Qd2 {[%clk 0:02:36.2]} 14... Qd6 {[%clk 0:03:05.2]} 15. g3 {[%clk 0:02:33.4]}
15... e5 {[%clk 0:03:05.3]} 16. dxe5 {[%clk 0:02:30.2]} 16... Ncxe5 {[%clk
0:03:06.2]} 17. Be4 {[%clk 0:02:17.8]} 17... Bf5 {[%clk 0:01:37]} 18. Qxd5+
{[%clk 0:02:12.5]} 18... Qxd5 {[%clk 0:01:37]} 19. Bxd5+ {[%clk 0:02:13.1]}
19... Kh8 {[%clk 0:01:37.3]} 20. Nxe5 {[%clk 0:02:11.9]} 20... Nxe5 {[%clk
0:01:38.2]} 21. Rfe1 {[%clk 0:02:03.3]} 21... Rfe8 {[%clk 0:01:21.9]} 22. Kg2
{[%clk 0:01:55.8]} 22... Rad8 {[%clk 0:01:12.8]} 23. Bxb7 {[%clk 0:01:50.5]}
23... g5 {[%clk 0:00:56.3]} 24. Nh5 {[%clk 0:01:40.3]} 24... Rb8 {[%clk
0:00:45.3]} 25. Be4 {[%clk 0:01:36.3]} 25... Nd3 {[%clk 0:00:36.6]} 26. Bxd3
{[%clk 0:01:26.8]} 26... Bxd3 {[%clk 0:00:37.5]} 27. Rxe8+ {[%clk 0:01:25.7]}
27... Rxe8 {[%clk 0:00:37.9]} 28. Nf6 {[%clk 0:01:06.6]} 28... Re2 {[%clk
0:00:34]} 29. b4 {[%clk 0:01:04.5]} 29... Kg7 {[%clk 0:00:29.1]} 30. Ng4 {[%clk
0:00:52.6]} 30... Be4+ {[%clk 0:00:22.6]} 31. Kg1 {[%clk 0:00:52.1]} 31... Rb2
{[%clk 0:00:20.5]} 32. a3 {[%clk 0:00:50.6]} 32... h5 {[%clk 0:00:19.2]} 33. Ne3
{[%clk 0:00:49.3]} 33... h4 {[%clk 0:00:19.4]} 34. Nc4 {[%clk 0:00:39.8]} 34...
Rc2 {[%clk 0:00:18.4]} 35. Nd6 {[%clk 0:00:38.4]} 35... Bg6 {[%clk 0:00:08.7]}
36. b5 {[%clk 0:00:30.5]} 36... h3 {[%clk 0:00:07.6]} 37. a4 {[%clk 0:00:28.8]}
37... Rd2 {[%clk 0:00:07.9]} 38. Nc8 {[%clk 0:00:26.6]} 38... Rd7 {[%clk
0:00:08.1]} 39. b6 {[%clk 0:00:24.9]} 39... axb6 {[%clk 0:00:04.6]} 40. Nxb6
{[%clk 0:00:25.8]} 40... Ra7 {[%clk 0:00:04.5]} 41. a5 {[%clk 0:00:25.6]} 41...
Bd3 {[%clk 0:00:04.8]} 42. Nc8 {[%clk 0:00:23.3]} 42... Ra6 {[%clk 0:00:03.3]}
43. Nb6 {[%clk 0:00:21.3]} 43... g4 {[%clk 0:00:03.2]} 44. Nd5 {[%clk
0:00:20.5]} 44... Be4 {[%clk 0:00:02.4]} 45. Nb4 {[%clk 0:00:19]} 45... Ra7
{[%clk 0:00:02.2]} 46. a6 {[%clk 0:00:19.4]} 46... Kf6 {[%clk 0:00:01.9]} 47.
Re1 {[%clk 0:00:18.5]} 47... Kf5 {[%clk 0:00:01.9]} 48. Rd1 {[%clk 0:00:17.4]}
48... Ke5 {[%clk 0:00:02.3]} 49. Re1 {[%clk 0:00:16.2]} 49... Kf5 {[%clk
0:00:02.3]} 50. Re3 {[%clk 0:00:15.2]} 50... Ke5 {[%clk 0:00:02.6]} 51. Nc6+
{[%clk 0:00:14.9]} 51... Kd5 {[%clk 0:00:02.9]} 52. Nxa7 {[%clk 0:00:13.7]} 1-0

[Event "*** SCC Grand Prix: Titled Tuesday Blitz"]
[Site "Chess.com"]
[Date "2020.06.23"]
[Round "4"]
[White "MateSchmate"]
[Black "Vuk2000"]
[Result "1-0"]
[WhiteElo "2470"]
[BlackElo "2631"]
[TimeControl "180+1"]
[EndTime "10:40:06 PDT"]
[Termination "MateSchmate won on time"]

1. e4 {[%clk 0:03:00.9]} 1... e6 {[%clk 0:03:00.2]} 2. d4 {[%clk 0:03:00.5]}
2... d5 {[%clk 0:03:00.8]} 3. Bd3 {[%clk 0:03:01.1]} 3... c5 {[%clk 0:03:00.4]}
4. exd5 {[%clk 0:03:00.6]} 4... exd5 {[%clk 0:02:59.5]} 5. dxc5 {[%clk
0:03:00.2]} 5... Bxc5 {[%clk 0:03:00.4]} 6. Nf3 {[%clk 0:02:59.5]} 6... Nf6
{[%clk 0:03:00.2]} 7. O-O {[%clk 0:02:58.3]} 7... O-O {[%clk 0:03:00]} 8. Bg5
{[%clk 0:02:54.2]} 8... h6 {[%clk 0:02:59.7]} 9. Bh4 {[%clk 0:02:49.7]} 9... Bg4
{[%clk 0:02:56.8]} 10. Nbd2 {[%clk 0:02:47.1]} 10... Nc6 {[%clk 0:02:56.7]} 11.
Be2 {[%clk 0:02:35.9]} 11... Re8 {[%clk 0:02:52.3]} 12. Nb3 {[%clk 0:02:32.6]}
12... Bd6 {[%clk 0:02:46.7]} 13. Bg3 {[%clk 0:02:31.7]} 13... Ne4 {[%clk
0:02:42.1]} 14. Bxd6 {[%clk 0:02:29]} 14... Qxd6 {[%clk 0:02:43]} 15. c3 {[%clk
0:02:23.7]} 15... Re7 {[%clk 0:02:25.9]} 16. Nfd4 {[%clk 0:02:20.5]} 16... Bxe2
{[%clk 0:02:25.8]} 17. Nxe2 {[%clk 0:02:19.6]} 17... Rae8 {[%clk 0:02:20.1]} 18.
Ng3 {[%clk 0:02:18]} 18... g6 {[%clk 0:02:14.2]} 19. Qd3 {[%clk 0:02:12.4]}
19... Nf6 {[%clk 0:01:45.4]} 20. Rad1 {[%clk 0:02:08.2]} 20... h5 {[%clk
0:01:41.5]} 21. f3 {[%clk 0:01:56.8]} 21... Re3 {[%clk 0:01:21.5]} 22. Qb1
{[%clk 0:01:51.9]} 22... Ne5 {[%clk 0:01:15.2]} 23. Rfe1 {[%clk 0:01:48.5]}
23... Qb6 {[%clk 0:01:10]} 24. Nd4 {[%clk 0:01:47.9]} 24... Nc4 {[%clk
0:01:09.9]} 25. b3 {[%clk 0:01:45.3]} 25... Na3 {[%clk 0:00:59.6]} 26. Qc1
{[%clk 0:01:45]} 26... Rxe1+ {[%clk 0:00:53.7]} 27. Rxe1 {[%clk 0:01:45.9]}
27... Rxe1+ {[%clk 0:00:51.9]} 28. Qxe1 {[%clk 0:01:46.8]} 28... Nb5 {[%clk
0:00:48.3]} 29. Ne2 {[%clk 0:01:44.2]} 29... Qc5 {[%clk 0:00:40.5]} 30. a4
{[%clk 0:01:41.1]} 30... Nd6 {[%clk 0:00:38.6]} 31. Qd2 {[%clk 0:01:39.6]} 31...
a6 {[%clk 0:00:32.9]} 32. Qd3 {[%clk 0:01:37]} 32... Kg7 {[%clk 0:00:29.7]} 33.
g3 {[%clk 0:01:33.6]} 33... Qb6 {[%clk 0:00:29.5]} 34. Kg2 {[%clk 0:01:33.2]}
34... Qc7 {[%clk 0:00:29.2]} 35. Nf4 {[%clk 0:01:32.5]} 35... Qe7 {[%clk
0:00:28.5]} 36. Nde2 {[%clk 0:01:28.8]} 36... Nf5 {[%clk 0:00:27.5]} 37. Kf2
{[%clk 0:01:25]} 37... Qc5+ {[%clk 0:00:27]} 38. Nd4 {[%clk 0:01:25.1]} 38...
Nxd4 {[%clk 0:00:24.4]} 39. Qxd4 {[%clk 0:01:23.7]} 39... Qxd4+ {[%clk
0:00:24.7]} 40. cxd4 {[%clk 0:01:24.6]} 40... Kf8 {[%clk 0:00:25.3]} 41. Nd3
{[%clk 0:01:22.8]} 41... Nd7 {[%clk 0:00:23.7]} 42. Ke3 {[%clk 0:01:18.2]} 42...
Ke7 {[%clk 0:00:16.7]} 43. Nc5 {[%clk 0:01:13.9]} 43... Kd6 {[%clk 0:00:11]} 44.
Nd3 {[%clk 0:01:10.7]} 44... b6 {[%clk 0:00:08.5]} 45. g4 {[%clk 0:01:09.2]}
45... Nf6 {[%clk 0:00:04.9]} 46. h3 {[%clk 0:01:07.5]} 46... hxg4 {[%clk
0:00:04.8]} 47. fxg4 {[%clk 0:01:08.4]} 47... Ne4 {[%clk 0:00:05.2]} 48. Ne5
{[%clk 0:01:03.5]} 48... Ke6 {[%clk 0:00:05.1]} 49. h4 {[%clk 0:00:59.9]} 49...
Nd6 {[%clk 0:00:04]} 50. Kf4 {[%clk 0:00:57.6]} 50... b5 {[%clk 0:00:02.9]} 51.
h5 {[%clk 0:00:55]} 51... gxh5 {[%clk 0:00:02.9]} 52. gxh5 {[%clk 0:00:55.9]}
52... bxa4 {[%clk 0:00:03.4]} 53. bxa4 {[%clk 0:00:56.8]} 53... Kf6 {[%clk
0:00:03.8]} 54. Ng4+ {[%clk 0:00:53.6]} 54... Kg7 {[%clk 0:00:03.8]} 55. Ke5
{[%clk 0:00:54]} 55... Nc4+ {[%clk 0:00:04.1]} 56. Kxd5 {[%clk 0:00:52.7]} 56...
Nb6+ {[%clk 0:00:04.5]} 57. Kc6 {[%clk 0:00:52.1]} 57... Nxa4 {[%clk 0:00:05.4]}
58. d5 {[%clk 0:00:51.8]} 58... f5 {[%clk 0:00:03.6]} 59. d6 {[%clk 0:00:49.3]}
59... Nc3 {[%clk 0:00:01.7]} 60. d7 {[%clk 0:00:48.4]} 60... fxg4 {[%clk
0:00:01.9]} 61. d8=Q {[%clk 0:00:48.1]} 1-0

[Event "*** SCC Grand Prix: Titled Tuesday Blitz"]
[Site "Chess.com"]
[Date "2020.06.23"]
[Round "4"]
[White "GM_dmitrij"]
[Black "WIDBIFS"]
[Result "1-0"]
[WhiteElo "2908"]
[BlackElo "2710"]
[TimeControl "180+1"]
[EndTime "10:40:07 PDT"]
[Termination "GM_dmitrij won by resignation"]

1. c4 {[%clk 0:03:00.9]} 1... Nf6 {[%clk 0:02:57.5]} 2. Nc3 {[%clk 0:02:59.6]}
2... g6 {[%clk 0:02:57.1]} 3. g3 {[%clk 0:02:59.1]} 3... Bg7 {[%clk 0:02:57]} 4.
Bg2 {[%clk 0:02:59.7]} 4... O-O {[%clk 0:02:57.3]} 5. e4 {[%clk 0:03:00.3]} 5...
d6 {[%clk 0:02:57.8]} 6. Nge2 {[%clk 0:03:00.9]} 6... Nc6 {[%clk 0:02:57.6]} 7.
O-O {[%clk 0:03:00.5]} 7... Nd7 {[%clk 0:02:54.5]} 8. d4 {[%clk 0:02:53.3]} 8...
e5 {[%clk 0:02:55]} 9. Be3 {[%clk 0:02:53.2]} 9... exd4 {[%clk 0:02:53.1]} 10.
Nxd4 {[%clk 0:02:54.1]} 10... Nxd4 {[%clk 0:02:52.2]} 11. Bxd4 {[%clk 0:02:55]}
11... Bxd4 {[%clk 0:02:37.3]} 12. Qxd4 {[%clk 0:02:55.9]} 12... Ne5 {[%clk
0:02:31.1]} 13. Rad1 {[%clk 0:02:50.4]} 13... Nc6 {[%clk 0:02:28.3]} 14. Qd2
{[%clk 0:02:47.6]} 14... Be6 {[%clk 0:02:27.5]} 15. b3 {[%clk 0:02:44.2]} 15...
Qf6 {[%clk 0:02:13.1]} 16. f4 {[%clk 0:02:43.7]} 16... Rfe8 {[%clk 0:02:08]} 17.
h3 {[%clk 0:02:43.1]} 17... Rad8 {[%clk 0:02:03.7]} 18. f5 {[%clk 0:02:24.9]}
18... Bc8 {[%clk 0:01:29.9]} 19. Nd5 {[%clk 0:02:24.5]} 19... Qe5 {[%clk
0:01:30.6]} 20. fxg6 {[%clk 0:01:52.4]} 20... hxg6 {[%clk 0:01:19.3]} 21. Qh6
{[%clk 0:01:18]} 21... Qg7 {[%clk 0:01:08.3]} 22. Nf6+ {[%clk 0:01:16.8]} 22...
Kf8 {[%clk 0:01:08.8]} 23. Qxg7+ {[%clk 0:00:54.6]} 23... Kxg7 {[%clk
0:01:09.7]} 24. Nxe8+ {[%clk 0:00:55.2]} 24... Rxe8 {[%clk 0:01:10]} 25. Rf4
{[%clk 0:00:55.9]} 25... Ne5 {[%clk 0:01:06.1]} 26. h4 {[%clk 0:00:54.2]} 26...
a5 {[%clk 0:01:03.3]} 27. Kh2 {[%clk 0:00:36.8]} 27... Ng4+ {[%clk 0:00:55.3]}
28. Kg1 {[%clk 0:00:36.1]} 28... Ne5 {[%clk 0:00:55.6]} 29. Bf1 {[%clk
0:00:31.8]} 29... Bg4 {[%clk 0:00:53.6]} 30. Rb1 {[%clk 0:00:25.4]} 30... b6
{[%clk 0:00:52.7]} 31. Kf2 {[%clk 0:00:22.5]} 31... Rh8 {[%clk 0:00:39.1]} 32.
Be2 {[%clk 0:00:21.9]} 32... Bxe2 {[%clk 0:00:25]} 33. Kxe2 {[%clk 0:00:22.8]}
33... g5 {[%clk 0:00:22.2]} 34. hxg5 {[%clk 0:00:23.7]} 34... Rh2+ {[%clk
0:00:19.5]} 35. Rf2 {[%clk 0:00:23.7]} 35... Rh3 {[%clk 0:00:20]} 36. Rg1 {[%clk
0:00:23]} 36... Rh5 {[%clk 0:00:20.1]} 37. Rgg2 {[%clk 0:00:17.2]} 37... Rxg5
{[%clk 0:00:19.8]} 38. Rf4 {[%clk 0:00:17.8]} 38... Ng6 {[%clk 0:00:19.2]} 39.
Rf5 {[%clk 0:00:16.4]} 39... Rxf5 {[%clk 0:00:09.6]} 40. exf5 {[%clk 0:00:17.3]}
40... Ne5 {[%clk 0:00:10.4]} 41. Ke3 {[%clk 0:00:17.2]} 41... Kf6 {[%clk
0:00:11.3]} 42. Ke4 {[%clk 0:00:17.6]} 42... Kg5 {[%clk 0:00:09]} 43. g4 {[%clk
0:00:12.2]} 43... f6 {[%clk 0:00:07.8]} 44. Rg1 {[%clk 0:00:09.9]} 44... Nf7
{[%clk 0:00:03]} 45. Kd5 {[%clk 0:00:10.1]} 45... Nh6 {[%clk 0:00:02.5]} 46. Ke6
{[%clk 0:00:10]} 1-0

[Event "*** SCC Grand Prix: Titled Tuesday Blitz"]
[Site "Chess.com"]
[Date "2020.06.23"]
[Round "4"]
[White "theblitzchamp"]
[Black "ChessicallyInclined"]
[Result "0-1"]
[WhiteElo "2643"]
[BlackElo "2482"]
[TimeControl "180+1"]
[EndTime "10:40:08 PDT"]
[Termination "ChessicallyInclined won by checkmate"]

1. d4 {[%clk 0:03:00.9]} 1... Nf6 {[%clk 0:03:00]} 2. Bf4 {[%clk 0:03:01.1]}
2... c5 {[%clk 0:02:59.4]} 3. d5 {[%clk 0:03:00.3]} 3... b5 {[%clk 0:02:57.7]}
4. a4 {[%clk 0:02:57.9]} 4... b4 {[%clk 0:02:56]} 5. f3 {[%clk 0:02:57.2]} 5...
Bb7 {[%clk 0:02:53.3]} 6. e4 {[%clk 0:02:56.8]} 6... e6 {[%clk 0:02:52.9]} 7.
dxe6 {[%clk 0:02:56.9]} 7... fxe6 {[%clk 0:02:52.8]} 8. Nd2 {[%clk 0:02:50.8]}
8... d5 {[%clk 0:02:47.9]} 9. Bb5+ {[%clk 0:02:49.7]} 9... Nbd7 {[%clk
0:02:47.5]} 10. Bg5 {[%clk 0:02:36.9]} 10... Be7 {[%clk 0:02:40.9]} 11. Nh3
{[%clk 0:02:27.7]} 11... a6 {[%clk 0:02:35.8]} 12. Bxd7+ {[%clk 0:02:19.3]}
12... Nxd7 {[%clk 0:02:36.7]} 13. Bxe7 {[%clk 0:02:17.1]} 13... Qxe7 {[%clk
0:02:37.6]} 14. O-O {[%clk 0:02:17]} 14... O-O {[%clk 0:02:35.2]} 15. exd5
{[%clk 0:02:15.6]} 15... exd5 {[%clk 0:02:34]} 16. Re1 {[%clk 0:02:14.5]} 16...
Qf6 {[%clk 0:02:30.1]} 17. b3 {[%clk 0:02:09.3]} 17... Rad8 {[%clk 0:02:25.5]}
18. Nf2 {[%clk 0:02:06.7]} 18... Ne5 {[%clk 0:02:13.4]} 19. Nf1 {[%clk
0:02:01.6]} 19... Ng6 {[%clk 0:01:57]} 20. Ng3 {[%clk 0:01:56]} 20... Nf4 {[%clk
0:01:54.9]} 21. Ng4 {[%clk 0:01:48]} 21... Qg6 {[%clk 0:01:39.3]} 22. Qd2 {[%clk
0:01:41]} 22... h5 {[%clk 0:01:23.4]} 23. Ne5 {[%clk 0:01:40.5]} 23... Qg5
{[%clk 0:01:23]} 24. Kh1 {[%clk 0:01:16.2]} 24... h4 {[%clk 0:01:01.3]} 25. Nf1
{[%clk 0:01:15.5]} 25... d4 {[%clk 0:00:49.9]} 26. Nd3 {[%clk 0:01:06.7]} 26...
h3 {[%clk 0:00:45.6]} 27. Nxf4 {[%clk 0:00:47.7]} 27... Rxf4 {[%clk 0:00:37.2]}
28. Ng3 {[%clk 0:00:21.7]} 28... hxg2+ {[%clk 0:00:36.7]} 29. Kg1 {[%clk
0:00:21.7]} 29... Bxf3 {[%clk 0:00:32.9]} 30. Re6 {[%clk 0:00:21.4]} 30... Qg4
{[%clk 0:00:25]} 31. Rae1 {[%clk 0:00:20.3]} 31... Bd5 {[%clk 0:00:22.8]} 32.
Re7 {[%clk 0:00:18.8]} 32... Rdf8 {[%clk 0:00:18.3]} 33. Qd3 {[%clk 0:00:15.8]}
33... Rf1+ {[%clk 0:00:14.7]} 34. Rxf1 {[%clk 0:00:15.7]} 34... Rxf1+ {[%clk
0:00:14.3]} 35. Nxf1 {[%clk 0:00:15.6]} 35... gxf1=Q+ {[%clk 0:00:11.9]} 36.
Kxf1 {[%clk 0:00:16.5]} 36... Qf4+ {[%clk 0:00:09.5]} 37. Ke2 {[%clk 0:00:15.8]}
37... Qxh2+ {[%clk 0:00:08.8]} 38. Kd1 {[%clk 0:00:15.5]} 38... Qh5+ {[%clk
0:00:07.2]} 39. Kc1 {[%clk 0:00:05.8]} 39... Qg5+ {[%clk 0:00:07]} 40. Kb2
{[%clk 0:00:06.4]} 40... Qxe7 {[%clk 0:00:07.1]} 41. Qxa6 {[%clk 0:00:07.3]}
41... Qe5 {[%clk 0:00:05.4]} 42. Qc8+ {[%clk 0:00:07.4]} 42... Kf7 {[%clk
0:00:05.5]} 43. Ka2 {[%clk 0:00:07.4]} 43... d3 {[%clk 0:00:05.5]} 44. cxd3
{[%clk 0:00:06.9]} 44... Qe2+ {[%clk 0:00:05.6]} 45. Ka1 {[%clk 0:00:07.4]}
45... Qd1+ {[%clk 0:00:05.9]} 46. Kb2 {[%clk 0:00:07.5]} 46... Qxb3+ {[%clk
0:00:06.5]} 47. Kc1 {[%clk 0:00:08.4]} 47... Qc3+ {[%clk 0:00:06.6]} 48. Kb1
{[%clk 0:00:08.5]} 48... Qxd3+ {[%clk 0:00:06.5]} 49. Kc1 {[%clk 0:00:08.9]}
49... Qc3+ {[%clk 0:00:06.6]} 50. Kb1 {[%clk 0:00:09.3]} 50... Be4+ {[%clk
0:00:06.9]} 51. Ka2 {[%clk 0:00:09.8]} 51... b3+ {[%clk 0:00:07.2]} 52. Ka3
{[%clk 0:00:10.3]} 52... b2+ {[%clk 0:00:07.7]} 53. Ka2 {[%clk 0:00:11.2]} 53...
b1=Q# {[%clk 0:00:08.2]} 0-1